[Event "Titled Tuesday Blitz May 03 Early 2022"]
[White "Chernomordik, Pavel"]
[Black "Khokhlova, Daria"]
[WhiteFideId "2804530"]
[BlackFideId "24182729"]
[WhiteElo "2220"]
[BlackElo "2034"]
[Result "0-1"]
[Round "04"]
[TimeControl "180+1"]
[Date "2022.05.03"]
[WhiteClock "0:00:10"]
[BlackClock "0:00:14"]

1. e4 {[%clk 0:03:00]}  c5 {[%clk 0:02:59]} 2. Nc3 {[%clk 0:02:58]}  Nc6 {[%clk 0:02:56]} 3. Bb5 {[%clk 0:02:57]}  g6 {[%clk 0:02:54]} 4. Bxc6 {[%clk 0:02:56]}  bxc6 {[%clk 0:02:54]} 5. f4 {[%clk 0:02:57]}  Bg7 {[%clk 0:02:53]} 6. Nf3 {[%clk 0:02:54]}  e6 {[%clk 0:02:43]} 7. e5 {[%clk 0:02:54]}  f6 {[%clk 0:02:38]} 8. Ne4 {[%clk 0:02:49]}  Qb6 {[%clk 0:02:10]} 9. Nd6+ {[%clk 0:02:48]}  Kf8 {[%clk 0:02:10]} 10. Qe2 {[%clk 0:02:41]}  Ne7 {[%clk 0:02:04]} 11. O-O {[%clk 0:02:30]}  Nf5 {[%clk 0:01:59]} 12. Nc4 {[%clk 0:02:27]}  Qc7 {[%clk 0:01:57]} 13. b3 {[%clk 0:02:17]}  Ba6 {[%clk 0:01:42]} 14. Ba3 {[%clk 0:02:12]}  Bxc4 {[%clk 0:01:21]} 15. Qxc4 {[%clk 0:02:08]}  Kf7 {[%clk 0:01:11]} 16. Bxc5 {[%clk 0:02:06]}  Rhe8 {[%clk 0:00:51]} 17. g4 {[%clk 0:02:00]}  Ne7 {[%clk 0:00:44]} 18. exf6 {[%clk 0:01:48]}  Bxf6 {[%clk 0:00:41]} 19. Bd4 {[%clk 0:01:48]}  Nd5 {[%clk 0:00:32]} 20. Ne5+ {[%clk 0:01:36]}  Kg8 {[%clk 0:00:25]} 21. Rae1 {[%clk 0:01:31]}  Rf8 {[%clk 0:00:20]} 22. Qd3 {[%clk 0:01:28]}  Rae8 {[%clk 0:00:18]} 23. c4 {[%clk 0:01:19]}  Ne7 {[%clk 0:00:16]} 24. Bc5 {[%clk 0:01:14]}  Bg7 {[%clk 0:00:15]} 25. Bd6 {[%clk 0:01:01]}  Qd8 {[%clk 0:00:15]} 26. Qd4 {[%clk 0:00:55]}  Bf6 {[%clk 0:00:12]} 27. Qxa7 {[%clk 0:00:51]}  Bxe5 {[%clk 0:00:13]} 28. fxe5 {[%clk 0:00:49]}  Nc8 {[%clk 0:00:13]} 29. Rxf8+ {[%clk 0:00:37]}  Rxf8 {[%clk 0:00:13]} 30. Qd4 {[%clk 0:00:33]}  Qh4 {[%clk 0:00:13]} 31. Re2 {[%clk 0:00:17]}  Nxd6 {[%clk 0:00:13]} 32. exd6 {[%clk 0:00:16]}  e5 {[%clk 0:00:13]} 33. Qe4 {[%clk 0:00:15]}  Rf4 {[%clk 0:00:14]} 34. Qxe5 {[%clk 0:00:10]}  Qxg4+ {[%clk 0:00:14]} 0-1


[Site "https://www.chess.com"]

[Event "Titled Tuesday Blitz May 03 Early 2022"]
[White "Chuemsakul, Sarocha"]
[Black "Djokic, Mihailo"]
[WhiteFideId "6203710"]
[BlackFideId "976440"]
[WhiteElo "1703"]
[BlackElo "2202"]
[Result "0-1"]
[Round "04"]
[TimeControl "180+1"]
[Date "2022.05.03"]
[WhiteClock "0:00:01"]
[BlackClock "0:00:28"]

1. Nf3 {[%clk 0:03:00]}  Nf6 {[%clk 0:03:00]} 2. g3 {[%clk 0:03:00]}  g6 {[%clk 0:03:00]} 3. b3 {[%clk 0:02:59]}  Bg7 {[%clk 0:03:01]} 4. Bb2 {[%clk 0:02:59]}  O-O {[%clk 0:03:02]} 5. Bg2 {[%clk 0:03:00]}  d6 {[%clk 0:03:02]} 6. d4 {[%clk 0:02:59]}  e5 {[%clk 0:03:03]} 7. dxe5 {[%clk 0:02:49]}  Nfd7 {[%clk 0:03:03]} 8. c4 {[%clk 0:02:43]}  Nc6 {[%clk 0:03:03]} 9. O-O {[%clk 0:02:32]}  dxe5 {[%clk 0:03:02]} 10. Qd2 {[%clk 0:02:17]}  Nc5 {[%clk 0:02:53]} 11. Qe3 {[%clk 0:01:52]}  Nd4 {[%clk 0:02:35]} 12. Na3 {[%clk 0:01:36]}  Re8 {[%clk 0:02:27]} 13. Rfd1 {[%clk 0:01:31]}  Bg4 {[%clk 0:01:57]} 14. Rd2 {[%clk 0:00:57]}  Bxf3 {[%clk 0:01:40]} 15. exf3 {[%clk 0:00:57]}  Nce6 {[%clk 0:01:38]} 16. Nc2 {[%clk 0:00:49]}  c5 {[%clk 0:01:37]} 17. Nxd4 {[%clk 0:00:34]}  cxd4 {[%clk 0:01:38]} 18. Qe2 {[%clk 0:00:29]}  Qa5 {[%clk 0:01:35]} 19. a3 {[%clk 0:00:27]}  Rad8 {[%clk 0:01:30]} 20. b4 {[%clk 0:00:27]}  Qa4 {[%clk 0:01:30]} 21. Qd1 {[%clk 0:00:19]}  Qd7 {[%clk 0:01:28]} 22. Bf1 {[%clk 0:00:15]}  Qc7 {[%clk 0:01:26]} 23. c5 {[%clk 0:00:14]}  b6 {[%clk 0:01:25]} 24. Rc1 {[%clk 0:00:14]}  bxc5 {[%clk 0:01:25]} 25. bxc5 {[%clk 0:00:14]}  Rb8 {[%clk 0:01:26]} 26. a4 {[%clk 0:00:12]}  Rec8 {[%clk 0:01:22]} 27. Ba3 {[%clk 0:00:11]}  Qa5 {[%clk 0:01:16]} 28. Rdc2 {[%clk 0:00:06]}  Qxa4 {[%clk 0:01:12]} 29. Bb2 {[%clk 0:00:06]}  Qc6 {[%clk 0:01:08]} 30. Bd3 {[%clk 0:00:05]}  f5 {[%clk 0:01:05]} 31. Bc4 {[%clk 0:00:03]}  Kh8 {[%clk 0:01:05]} 32. Ba2 {[%clk 0:00:01]}  Nc7 {[%clk 0:01:01]} 33. Qe2 {[%clk 0:00:01]}  a5 {[%clk 0:00:53]} 34. Qd3 {[%clk 0:00:02]}  e4 {[%clk 0:00:49]} 35. fxe4 {[%clk 0:00:02]}  fxe4 {[%clk 0:00:50]} 36. Qc4 {[%clk 0:00:02]}  Rb4 {[%clk 0:00:48]} 37. Qf7 {[%clk 0:00:01]}  Rf8 {[%clk 0:00:47]} 38. Qe7 {[%clk 0:00:01]}  h5 {[%clk 0:00:28]} 0-1


[Site "https://www.chess.com"]

[Event "Titled Tuesday Blitz May 03 Early 2022"]
[White "Cramling Bellon, Anna"]
[Black "Prohorov, Olexandr"]
[WhiteFideId "32009232"]
[BlackFideId "14105578"]
[WhiteElo "1905"]
[BlackElo "1993"]
[Result "1/2-1/2"]
[Round "04"]
[TimeControl "180+1"]
[Date "2022.05.03"]
[WhiteClock "0:02:10"]
[BlackClock "0:02:50"]

1. d4 {[%clk 0:03:00]}  d5 {[%clk 0:02:58]} 2. c4 {[%clk 0:03:00]}  c6 {[%clk 0:02:59]} 3. Nf3 {[%clk 0:03:00]}  Nf6 {[%clk 0:02:58]} 4. Nc3 {[%clk 0:02:59]}  e6 {[%clk 0:02:57]} 5. e3 {[%clk 0:02:57]}  Nbd7 {[%clk 0:02:56]} 6. Bd3 {[%clk 0:02:56]}  Bd6 {[%clk 0:02:56]} 7. O-O {[%clk 0:02:55]}  O-O {[%clk 0:02:56]} 8. Bd2 {[%clk 0:02:52]}  dxc4 {[%clk 0:02:54]} 9. Bxc4 {[%clk 0:02:53]}  b5 {[%clk 0:02:54]} 10. Bd3 {[%clk 0:02:52]}  Bb7 {[%clk 0:02:54]} 11. e4 {[%clk 0:02:51]}  e5 {[%clk 0:02:53]} 12. d5 {[%clk 0:02:50]}  b4 {[%clk 0:02:52]} 13. dxc6 {[%clk 0:02:14]}  Bxc6 {[%clk 0:02:50]} 14. Nb5 {[%clk 0:02:10]} 1/2-1/2


[Site "https://www.chess.com"]

[Event "Titled Tuesday Blitz May 03 Early 2022"]
[White "Dauner, Benedikt"]
[Black "Vignesh, N R"]
[WhiteFideId "16225899"]
[BlackFideId "25012215"]
[WhiteElo "2230"]
[BlackElo "2363"]
[Result "1-0"]
[Round "04"]
[TimeControl "180+1"]
[Date "2022.05.03"]
[WhiteClock "0:00:04"]
[BlackClock "0:00:14"]

1. b3 {[%clk 0:03:00]}  g6 {[%clk 0:02:55]} 2. Bb2 {[%clk 0:03:00]}  Nf6 {[%clk 0:02:55]} 3. Bxf6 {[%clk 0:03:01]}  exf6 {[%clk 0:02:54]} 4. c4 {[%clk 0:03:02]}  f5 {[%clk 0:02:53]} 5. Nc3 {[%clk 0:03:02]}  Bg7 {[%clk 0:02:53]} 6. Rc1 {[%clk 0:03:02]}  O-O {[%clk 0:02:51]} 7. g3 {[%clk 0:03:02]}  d6 {[%clk 0:02:51]} 8. Bg2 {[%clk 0:03:02]}  Nc6 {[%clk 0:02:50]} 9. e3 {[%clk 0:03:02]}  a5 {[%clk 0:02:49]} 10. Nge2 {[%clk 0:03:02]}  h5 {[%clk 0:02:49]} 11. O-O {[%clk 0:03:00]}  h4 {[%clk 0:02:48]} 12. d4 {[%clk 0:02:54]}  hxg3 {[%clk 0:02:48]} 13. hxg3 {[%clk 0:02:55]}  Bh6 {[%clk 0:02:48]} 14. Bf3 {[%clk 0:02:53]}  Kg7 {[%clk 0:02:48]} 15. Kg2 {[%clk 0:02:53]}  Bd7 {[%clk 0:02:44]} 16. a3 {[%clk 0:02:52]}  Bg5 {[%clk 0:02:42]} 17. Qd3 {[%clk 0:02:51]}  Ne7 {[%clk 0:02:35]} 18. b4 {[%clk 0:02:36]}  axb4 {[%clk 0:02:34]} 19. axb4 {[%clk 0:02:37]}  Ra3 {[%clk 0:02:31]} 20. Ra1 {[%clk 0:02:33]}  Qa8 {[%clk 0:02:30]} 21. Qd1 {[%clk 0:02:18]}  Rh8 {[%clk 0:02:25]} 22. Qc1 {[%clk 0:01:56]}  Rxa1 {[%clk 0:02:11]} 23. Qxa1 {[%clk 0:01:57]}  f4 {[%clk 0:02:11]} 24. Qxa8 {[%clk 0:01:44]}  Bh3+ {[%clk 0:02:03]} 25. Kh2 {[%clk 0:01:36]}  Bxf1+ {[%clk 0:02:01]} 26. Qxh8+ {[%clk 0:01:35]}  Kxh8 {[%clk 0:02:02]} 27. gxf4 {[%clk 0:01:34]}  Bh4 {[%clk 0:01:55]} 28. Kg1 {[%clk 0:01:32]}  Bxe2 {[%clk 0:01:54]} 29. Nxe2 {[%clk 0:01:33]}  b6 {[%clk 0:01:53]} 30. d5 {[%clk 0:01:27]}  Bf6 {[%clk 0:01:49]} 31. Kf1 {[%clk 0:01:25]}  Bb2 {[%clk 0:01:48]} 32. Be4 {[%clk 0:01:21]}  f5 {[%clk 0:01:47]} 33. Bd3 {[%clk 0:01:20]}  Kg7 {[%clk 0:01:42]} 34. Ke1 {[%clk 0:01:19]}  c6 {[%clk 0:01:40]} 35. dxc6 {[%clk 0:01:08]}  Nxc6 {[%clk 0:01:41]} 36. b5 {[%clk 0:01:09]}  Nb4 {[%clk 0:01:38]} 37. Kd2 {[%clk 0:01:07]}  Kf6 {[%clk 0:01:31]} 38. Bb1 {[%clk 0:01:06]}  d5 {[%clk 0:01:29]} 39. cxd5 {[%clk 0:00:31]}  Nxd5 {[%clk 0:01:29]} 40. Kc2 {[%clk 0:00:27]}  Ba3 {[%clk 0:01:23]} 41. Kb3 {[%clk 0:00:27]}  Bc5 {[%clk 0:01:16]} 42. Kc4 {[%clk 0:00:26]}  Nc7 {[%clk 0:01:15]} 43. Nc3 {[%clk 0:00:21]}  Ne8 {[%clk 0:00:59]} 44. Na4 {[%clk 0:00:19]}  Nd6+ {[%clk 0:00:59]} 45. Kd5 {[%clk 0:00:15]}  Nxb5 {[%clk 0:00:59]} 46. Bd3 {[%clk 0:00:15]}  Nc7+ {[%clk 0:00:56]} 47. Kc6 {[%clk 0:00:14]}  Ne6 {[%clk 0:00:56]} 48. Nxb6 {[%clk 0:00:11]}  Bxb6 {[%clk 0:00:47]} 49. Kxb6 {[%clk 0:00:12]}  Ke7 {[%clk 0:00:44]} 50. Kc6 {[%clk 0:00:12]}  Nd8+ {[%clk 0:00:42]} 51. Kd5 {[%clk 0:00:12]}  Nf7 {[%clk 0:00:42]} 52. Bc4 {[%clk 0:00:11]}  Nd6 {[%clk 0:00:41]} 53. Bd3 {[%clk 0:00:10]}  Ne8 {[%clk 0:00:40]} 54. Ke5 {[%clk 0:00:10]}  Nf6 {[%clk 0:00:38]} 55. Bxf5 {[%clk 0:00:10]}  gxf5 {[%clk 0:00:38]} 56. Kxf5 {[%clk 0:00:11]}  Nd5 {[%clk 0:00:34]} 57. Kg6 {[%clk 0:00:09]}  Nc3 {[%clk 0:00:31]} 58. f5 {[%clk 0:00:08]}  Ne4 {[%clk 0:00:31]} 59. f3 {[%clk 0:00:07]}  Nf6 {[%clk 0:00:30]} 60. e4 {[%clk 0:00:07]}  Nd7 {[%clk 0:00:26]} 61. Kg7 {[%clk 0:00:06]}  Ne5 {[%clk 0:00:18]} 62. f6+ {[%clk 0:00:06]}  Ke6 {[%clk 0:00:18]} 63. f4 {[%clk 0:00:07]}  Nd7 {[%clk 0:00:17]} 64. f7 {[%clk 0:00:06]}  Ke7 {[%clk 0:00:17]} 65. e5 {[%clk 0:00:06]}  Nf8 {[%clk 0:00:16]} 66. f5 {[%clk 0:00:05]}  Nd7 {[%clk 0:00:16]} 67. e6 {[%clk 0:00:05]}  Nf8 {[%clk 0:00:14]} 68. f6+ {[%clk 0:00:04]} 1-0


[Site "https://www.chess.com"]

[Event "Titled Tuesday Blitz May 03 Early 2022"]
[White "Delorme, Alban"]
[Black "Terry, Renato"]
[WhiteFideId "623636"]
[BlackFideId "3803457"]
[WhiteElo "2197"]
[BlackElo "2577"]
[Result "0-1"]
[Round "04"]
[TimeControl "180+1"]
[Date "2022.05.03"]
[WhiteClock "0:00:43"]
[BlackClock "0:00:16"]

1. d4 {[%clk 0:02:59]}  d5 {[%clk 0:02:57]} 2. Nf3 {[%clk 0:02:59]}  Nf6 {[%clk 0:02:58]} 3. g3 {[%clk 0:02:59]}  c6 {[%clk 0:02:58]} 4. Bg2 {[%clk 0:02:59]}  Bf5 {[%clk 0:02:58]} 5. O-O {[%clk 0:02:59]}  e6 {[%clk 0:02:58]} 6. c4 {[%clk 0:03:00]}  Nbd7 {[%clk 0:02:58]} 7. Nc3 {[%clk 0:03:00]}  h6 {[%clk 0:02:59]} 8. Ne5 {[%clk 0:02:56]}  Be7 {[%clk 0:02:57]} 9. Qb3 {[%clk 0:02:56]}  Qb6 {[%clk 0:02:56]} 10. Nxd7 {[%clk 0:02:53]}  Nxd7 {[%clk 0:02:55]} 11. e4 {[%clk 0:02:53]}  dxe4 {[%clk 0:02:55]} 12. Nxe4 {[%clk 0:02:54]}  O-O {[%clk 0:02:51]} 13. Be3 {[%clk 0:02:53]}  Rfd8 {[%clk 0:02:40]} 14. Rfd1 {[%clk 0:02:50]}  Qxb3 {[%clk 0:02:17]} 15. axb3 {[%clk 0:02:49]}  Nf6 {[%clk 0:02:18]} 16. Nxf6+ {[%clk 0:02:35]}  Bxf6 {[%clk 0:02:18]} 17. Rd2 {[%clk 0:02:35]}  a6 {[%clk 0:02:17]} 18. Rad1 {[%clk 0:02:32]}  Bg4 {[%clk 0:02:09]} 19. f3 {[%clk 0:02:26]}  Bf5 {[%clk 0:02:09]} 20. g4 {[%clk 0:02:27]}  Bg6 {[%clk 0:02:07]} 21. f4 {[%clk 0:02:27]}  Be7 {[%clk 0:01:59]} 22. Rf2 {[%clk 0:02:19]}  f5 {[%clk 0:01:51]} 23. Bh3 {[%clk 0:02:04]}  Rd7 {[%clk 0:01:44]} 24. gxf5 {[%clk 0:02:02]}  Bxf5 {[%clk 0:01:43]} 25. Bxf5 {[%clk 0:02:01]}  exf5 {[%clk 0:01:44]} 26. Rfd2 {[%clk 0:01:45]}  Re8 {[%clk 0:01:09]} 27. Kf2 {[%clk 0:01:44]}  Bh4+ {[%clk 0:00:54]} 28. Kf3 {[%clk 0:01:43]}  Rde7 {[%clk 0:00:55]} 29. Rd3 {[%clk 0:01:36]}  g5 {[%clk 0:00:53]} 30. Rg1 {[%clk 0:01:13]}  g4+ {[%clk 0:00:50]} 31. Ke2 {[%clk 0:01:13]}  Kf7 {[%clk 0:00:42]} 32. Kd2 {[%clk 0:01:13]}  Bf2 {[%clk 0:00:38]} 33. Bxf2 {[%clk 0:01:09]}  Re2+ {[%clk 0:00:39]} 34. Kc3 {[%clk 0:01:05]}  Rxf2 {[%clk 0:00:39]} 35. d5 {[%clk 0:01:05]}  c5 {[%clk 0:00:38]} 36. Rgd1 {[%clk 0:00:53]}  Ree2 {[%clk 0:00:23]} 37. R1d2 {[%clk 0:00:53]}  Rxd2 {[%clk 0:00:24]} 38. Rxd2 {[%clk 0:00:53]}  Rxd2 {[%clk 0:00:13]} 39. Kxd2 {[%clk 0:00:53]}  h5 {[%clk 0:00:13]} 40. Ke3 {[%clk 0:00:52]}  h4 {[%clk 0:00:14]} 41. Kf2 {[%clk 0:00:51]}  Ke7 {[%clk 0:00:14]} 42. Kg2 {[%clk 0:00:52]}  Kd6 {[%clk 0:00:14]} 43. Kf2 {[%clk 0:00:51]}  b5 {[%clk 0:00:14]} 44. Kg2 {[%clk 0:00:51]}  a5 {[%clk 0:00:15]} 45. h3 {[%clk 0:00:46]}  g3 {[%clk 0:00:14]} 46. Kf3 {[%clk 0:00:46]}  a4 {[%clk 0:00:15]} 47. bxa4 {[%clk 0:00:45]}  bxc4 {[%clk 0:00:15]} 48. a5 {[%clk 0:00:42]}  Kxd5 {[%clk 0:00:15]} 49. a6 {[%clk 0:00:42]}  Kc6 {[%clk 0:00:16]} 50. b4 {[%clk 0:00:43]}  cxb4 {[%clk 0:00:16]} 0-1


[Site "https://www.chess.com"]

[Event "Titled Tuesday Blitz May 03 Early 2022"]
[White "Ezat, Mohamed"]
[Black "Khamdamova, Afruza"]
[WhiteFideId "10600906"]
[BlackFideId "14210444"]
[WhiteElo "2386"]
[BlackElo "1660"]
[Result "1-0"]
[Round "04"]
[TimeControl "180+1"]
[Date "2022.05.03"]
[WhiteClock "0:00:10"]
[BlackClock "0:00:10"]

1. d4 {[%clk 0:02:56]}  Nf6 {[%clk 0:02:59]} 2. c4 {[%clk 0:02:55]}  e6 {[%clk 0:02:57]} 3. Nc3 {[%clk 0:02:55]}  d5 {[%clk 0:02:56]} 4. cxd5 {[%clk 0:02:54]}  exd5 {[%clk 0:02:56]} 5. Bg5 {[%clk 0:02:52]}  Be7 {[%clk 0:02:56]} 6. e3 {[%clk 0:02:51]}  O-O {[%clk 0:02:56]} 7. Bd3 {[%clk 0:02:51]}  c6 {[%clk 0:02:56]} 8. Qc2 {[%clk 0:02:50]}  Nbd7 {[%clk 0:02:56]} 9. Nge2 {[%clk 0:02:50]}  Re8 {[%clk 0:02:56]} 10. O-O {[%clk 0:02:50]}  Nf8 {[%clk 0:02:56]} 11. Rab1 {[%clk 0:02:50]}  g6 {[%clk 0:02:56]} 12. b4 {[%clk 0:02:49]}  a6 {[%clk 0:02:56]} 13. Na4 {[%clk 0:02:49]}  Ne6 {[%clk 0:02:55]} 14. Bh4 {[%clk 0:02:46]}  Ng7 {[%clk 0:02:55]} 15. Nc5 {[%clk 0:02:45]}  Nd7 {[%clk 0:02:28]} 16. Bxe7 {[%clk 0:02:43]}  Qxe7 {[%clk 0:02:28]} 17. a4 {[%clk 0:02:43]}  Nf6 {[%clk 0:02:24]} 18. b5 {[%clk 0:02:42]}  axb5 {[%clk 0:02:24]} 19. axb5 {[%clk 0:02:41]}  Bf5 {[%clk 0:02:23]} 20. bxc6 {[%clk 0:02:40]}  bxc6 {[%clk 0:02:23]} 21. Rb6 {[%clk 0:02:39]}  Rec8 {[%clk 0:02:21]} 22. Rc1 {[%clk 0:02:33]}  Bxd3 {[%clk 0:02:21]} 23. Nxd3 {[%clk 0:02:33]}  Nf5 {[%clk 0:01:41]} 24. Rxc6 {[%clk 0:02:29]}  Nd6 {[%clk 0:01:41]} 25. Ne5 {[%clk 0:02:15]}  Nc4 {[%clk 0:01:38]} 26. Rxc8+ {[%clk 0:02:11]}  Rxc8 {[%clk 0:01:37]} 27. Qa4 {[%clk 0:02:02]}  Qb7 {[%clk 0:01:36]} 28. Nxc4 {[%clk 0:01:49]}  dxc4 {[%clk 0:01:35]} 29. Nc3 {[%clk 0:01:33]}  Qb3 {[%clk 0:01:24]} 30. Qa6 {[%clk 0:01:21]}  Rb8 {[%clk 0:01:17]} 31. h3 {[%clk 0:01:05]}  Rb6 {[%clk 0:01:14]} 32. Qa1 {[%clk 0:01:00]}  Qb4 {[%clk 0:01:07]} 33. e4 {[%clk 0:00:56]}  Nd7 {[%clk 0:01:02]} 34. Nd5 {[%clk 0:00:54]}  Qd6 {[%clk 0:00:48]} 35. Nxb6 {[%clk 0:00:54]}  Nxb6 {[%clk 0:00:49]} 36. d5 {[%clk 0:00:50]}  Qf4 {[%clk 0:00:46]} 37. Rb1 {[%clk 0:00:40]}  Nd7 {[%clk 0:00:42]} 38. Qd4 {[%clk 0:00:35]}  Ne5 {[%clk 0:00:41]} 39. d6 {[%clk 0:00:27]}  Qg5 {[%clk 0:00:30]} 40. Kh1 {[%clk 0:00:16]}  Nd7 {[%clk 0:00:21]} 41. Qxc4 {[%clk 0:00:15]}  Qe5 {[%clk 0:00:20]} 42. Qd5 {[%clk 0:00:15]}  Qf4 {[%clk 0:00:16]} 43. Rd1 {[%clk 0:00:14]}  Qxf2 {[%clk 0:00:15]} 44. e5 {[%clk 0:00:13]}  Qe2 {[%clk 0:00:15]} 45. Rb1 {[%clk 0:00:10]}  Qxe5 {[%clk 0:00:12]} 46. Qxe5 {[%clk 0:00:09]}  Nxe5 {[%clk 0:00:13]} 47. Re1 {[%clk 0:00:10]}  f6 {[%clk 0:00:10]} 48. Rxe5 {[%clk 0:00:09]}  fxe5 {[%clk 0:00:10]} 49. d7 {[%clk 0:00:10]} 1-0


[Site "https://www.chess.com"]

[Event "Titled Tuesday Blitz May 03 Early 2022"]
[White "Itkis, Boris"]
[Black "Sirosh, Ilja"]
[WhiteFideId "1209167"]
[BlackFideId "4500458"]
[WhiteElo "2207"]
[BlackElo "2241"]
[Result "1/2-1/2"]
[Round "04"]
[TimeControl "180+1"]
[Date "2022.05.03"]
[WhiteClock "0:00:13"]
[BlackClock "0:00:08"]

1. Nf3 {[%clk 0:03:00]}  Nf6 {[%clk 0:02:58]} 2. b3 {[%clk 0:03:00]}  g6 {[%clk 0:02:57]} 3. Bb2 {[%clk 0:03:01]}  Bg7 {[%clk 0:02:57]} 4. d4 {[%clk 0:03:01]}  O-O {[%clk 0:02:56]} 5. e3 {[%clk 0:03:02]}  b6 {[%clk 0:02:53]} 6. Nbd2 {[%clk 0:03:03]}  Bb7 {[%clk 0:02:53]} 7. Bd3 {[%clk 0:03:03]}  d6 {[%clk 0:02:50]} 8. O-O {[%clk 0:03:00]}  c5 {[%clk 0:02:50]} 9. c4 {[%clk 0:03:00]}  cxd4 {[%clk 0:02:49]} 10. exd4 {[%clk 0:02:58]}  d5 {[%clk 0:02:44]} 11. Qe2 {[%clk 0:02:51]}  dxc4 {[%clk 0:02:44]} 12. bxc4 {[%clk 0:02:50]}  Nc6 {[%clk 0:02:42]} 13. Nb3 {[%clk 0:02:48]}  e6 {[%clk 0:02:26]} 14. Rad1 {[%clk 0:02:42]}  Re8 {[%clk 0:02:22]} 15. Rfe1 {[%clk 0:02:41]}  Rc8 {[%clk 0:02:21]} 16. Ne5 {[%clk 0:02:25]}  Rc7 {[%clk 0:02:08]} 17. Nxc6 {[%clk 0:02:10]}  Bxc6 {[%clk 0:02:08]} 18. Nd2 {[%clk 0:02:00]}  Qa8 {[%clk 0:02:07]} 19. f3 {[%clk 0:01:56]}  Nh5 {[%clk 0:01:57]} 20. Qe3 {[%clk 0:01:26]}  Rd8 {[%clk 0:01:57]} 21. Ne4 {[%clk 0:01:17]}  Rcd7 {[%clk 0:01:54]} 22. Bf1 {[%clk 0:01:16]}  Nf6 {[%clk 0:01:29]} 23. d5 {[%clk 0:00:56]}  Nxe4 {[%clk 0:01:12]} 24. Bxg7 {[%clk 0:00:56]}  Kxg7 {[%clk 0:01:12]} 25. fxe4 {[%clk 0:00:52]}  Ba4 {[%clk 0:01:10]} 26. Rd2 {[%clk 0:00:47]}  Qb8 {[%clk 0:01:03]} 27. Rf2 {[%clk 0:00:43]}  Qe5 {[%clk 0:01:01]} 28. Qa3 {[%clk 0:00:21]}  exd5 {[%clk 0:00:48]} 29. Qxa4 {[%clk 0:00:18]}  dxe4 {[%clk 0:00:49]} 30. Qc2 {[%clk 0:00:15]}  f5 {[%clk 0:00:47]} 31. Qb2 {[%clk 0:00:15]}  Qxb2 {[%clk 0:00:43]} 32. Rxb2 {[%clk 0:00:16]}  Rd2 {[%clk 0:00:43]} 33. Rxd2 {[%clk 0:00:16]}  Rxd2 {[%clk 0:00:44]} 34. Re2 {[%clk 0:00:16]}  Rd1 {[%clk 0:00:26]} 35. Rc2 {[%clk 0:00:16]}  Kf6 {[%clk 0:00:27]} 36. c5 {[%clk 0:00:15]}  bxc5 {[%clk 0:00:27]} 37. Rxc5 {[%clk 0:00:16]}  e3 {[%clk 0:00:28]} 38. Rc2 {[%clk 0:00:16]}  Ke5 {[%clk 0:00:26]} 39. g3 {[%clk 0:00:16]}  g5 {[%clk 0:00:26]} 40. Kg2 {[%clk 0:00:16]}  f4 {[%clk 0:00:24]} 41. gxf4+ {[%clk 0:00:13]}  gxf4 {[%clk 0:00:25]} 42. Be2 {[%clk 0:00:12]}  Ra1 {[%clk 0:00:15]} 43. Kf3 {[%clk 0:00:11]}  h6 {[%clk 0:00:13]} 44. Rc5+ {[%clk 0:00:11]}  Kd4 {[%clk 0:00:13]} 45. Ra5 {[%clk 0:00:12]}  Rh1 {[%clk 0:00:13]} 46. Rxa7 {[%clk 0:00:09]}  Rxh2 {[%clk 0:00:12]} 47. Bb5 {[%clk 0:00:10]}  Rf2+ {[%clk 0:00:12]} 48. Kg4 {[%clk 0:00:10]}  e2 {[%clk 0:00:12]} 49. Bxe2 {[%clk 0:00:10]}  Rxe2 {[%clk 0:00:11]} 50. Kxf4 {[%clk 0:00:11]}  Re4+ {[%clk 0:00:08]} 51. Kg3 {[%clk 0:00:11]}  Re3+ {[%clk 0:00:09]} 52. Kh4 {[%clk 0:00:11]}  Re4+ {[%clk 0:00:07]} 53. Kh5 {[%clk 0:00:11]}  Re6 {[%clk 0:00:07]} 54. a4 {[%clk 0:00:10]}  Kc4 {[%clk 0:00:08]} 55. a5 {[%clk 0:00:11]}  Kb5 {[%clk 0:00:08]} 56. a6 {[%clk 0:00:12]}  Rxa6 {[%clk 0:00:08]} 57. Rxa6 {[%clk 0:00:13]}  Kxa6 {[%clk 0:00:08]} 58. Kxh6 {[%clk 0:00:13]} 1/2-1/2


[Site "https://www.chess.com"]

[Event "Titled Tuesday Blitz May 03 Early 2022"]
[White "Jakubiec, Artur"]
[Black "Vovk, Orest"]
[WhiteFideId "1103261"]
[BlackFideId "14113490"]
[WhiteElo "2473"]
[BlackElo "2203"]
[Result "1/2-1/2"]
[Round "04"]
[TimeControl "180+1"]
[Date "2022.05.03"]
[WhiteClock "0:00:52"]
[BlackClock "0:00:08"]

1. f4 {[%clk 0:03:00]}  Nf6 {[%clk 0:02:53]} 2. Nf3 {[%clk 0:03:01]}  h6 {[%clk 0:02:51]} 3. Ng1 {[%clk 0:03:01]}  g5 {[%clk 0:02:51]} 4. d4 {[%clk 0:02:46]}  g4 {[%clk 0:02:38]} 5. c4 {[%clk 0:02:41]}  d5 {[%clk 0:02:30]} 6. Nc3 {[%clk 0:02:15]}  c6 {[%clk 0:02:28]} 7. e3 {[%clk 0:02:02]}  Bf5 {[%clk 0:02:27]} 8. Qb3 {[%clk 0:01:53]}  Qb6 {[%clk 0:02:19]} 9. Nge2 {[%clk 0:01:50]}  e6 {[%clk 0:02:15]} 10. Ng3 {[%clk 0:01:49]}  Bg6 {[%clk 0:02:14]} 11. Bd2 {[%clk 0:01:42]}  Qxb3 {[%clk 0:02:13]} 12. axb3 {[%clk 0:01:42]}  Bb4 {[%clk 0:02:13]} 13. Na4 {[%clk 0:01:37]}  Bxd2+ {[%clk 0:02:12]} 14. Kxd2 {[%clk 0:01:37]}  Nbd7 {[%clk 0:02:13]} 15. Bd3 {[%clk 0:01:38]}  Bxd3 {[%clk 0:02:11]} 16. Kxd3 {[%clk 0:01:38]}  h5 {[%clk 0:02:12]} 17. h4 {[%clk 0:01:37]}  gxh3 {[%clk 0:02:05]} 18. Rxh3 {[%clk 0:01:36]}  Ke7 {[%clk 0:01:59]} 19. Rah1 {[%clk 0:01:33]}  Rag8 {[%clk 0:01:59]} 20. Nc3 {[%clk 0:01:29]}  h4 {[%clk 0:01:55]} 21. Nge2 {[%clk 0:01:28]}  Rxg2 {[%clk 0:01:53]} 22. Rxh4 {[%clk 0:01:28]}  Rxh4 {[%clk 0:01:48]} 23. Rxh4 {[%clk 0:01:28]}  Ng4 {[%clk 0:01:42]} 24. Rh7 {[%clk 0:01:27]}  Ndf6 {[%clk 0:01:39]} 25. Rh8 {[%clk 0:01:26]}  Nf2+ {[%clk 0:01:35]} 26. Kd2 {[%clk 0:01:23]}  N6e4+ {[%clk 0:01:35]} 27. Ke1 {[%clk 0:01:19]}  Nd3+ {[%clk 0:01:33]} 28. Kf1 {[%clk 0:01:18]}  Rf2+ {[%clk 0:01:29]} 29. Kg1 {[%clk 0:01:18]}  Nxb2 {[%clk 0:01:25]} 30. Rb8 {[%clk 0:01:17]}  Rf3 {[%clk 0:01:14]} 31. Rxb7+ {[%clk 0:01:16]}  Kf8 {[%clk 0:01:14]} 32. Nxe4 {[%clk 0:01:12]}  dxe4 {[%clk 0:01:13]} 33. Rc7 {[%clk 0:01:05]}  Rxe3 {[%clk 0:01:12]} 34. Kf2 {[%clk 0:01:05]}  Nd1+ {[%clk 0:00:57]} 35. Ke1 {[%clk 0:01:04]}  Nc3 {[%clk 0:00:56]} 36. Kd2 {[%clk 0:01:03]}  Rd3+ {[%clk 0:00:51]} 37. Ke1 {[%clk 0:01:01]}  Nxe2 {[%clk 0:00:42]} 38. Kxe2 {[%clk 0:01:01]}  Rxb3 {[%clk 0:00:43]} 39. Rxc6 {[%clk 0:01:01]}  Rd3 {[%clk 0:00:43]} 40. Rc7 {[%clk 0:00:57]}  a5 {[%clk 0:00:20]} 41. f5 {[%clk 0:00:57]}  Rxd4 {[%clk 0:00:16]} 42. fxe6 {[%clk 0:00:56]}  fxe6 {[%clk 0:00:15]} 43. Ke3 {[%clk 0:00:56]}  Rd1 {[%clk 0:00:15]} 44. Kxe4 {[%clk 0:00:57]}  a4 {[%clk 0:00:12]} 45. Ke5 {[%clk 0:00:56]}  a3 {[%clk 0:00:10]} 46. Ra7 {[%clk 0:00:54]}  Ra1 {[%clk 0:00:10]} 47. Kf6 {[%clk 0:00:53]}  Kg8 {[%clk 0:00:07]} 48. Kg6 {[%clk 0:00:51]}  Kf8 {[%clk 0:00:08]} 49. Kf6 {[%clk 0:00:51]}  Kg8 {[%clk 0:00:08]} 50. Kg6 {[%clk 0:00:52]}  Kf8 {[%clk 0:00:08]} 51. Kf6 {[%clk 0:00:52]} 1/2-1/2


[Site "https://www.chess.com"]